fUST/lending_fUST_20250626
["ID","MTS","AMOUNT","RATE_DAILY","PERIOD"]
[367732315,1750908640182,-500.0,0.0001814,2]
[367732316,1750908640191,-500.0,0.0001814,2]
[367732317,1750908640200,-500.0,0.0001814,2]
[367732318,1750908640210,-151.0,0.0001814,2]
[367732319,1750908640219,-151.0,0.0001814,2]
[367732320,1750908640229,-500.0,0.0001814,2]
[367732321,1750908640239,-151.0,0.0001814,2]
[367732322,1750908640249,-500.0,0.0001814,2]
[367732323,1750908640261,-500.0,0.0001814,2]
[367732324,1750908640273,-500.0,0.0001814,2]
[367732325,1750908640284,-241.29998882,0.0001814,2]
[367732326,1750908640294,-151.0,0.0001814,2]
[367732327,1750908640303,-500.0,0.0001814,2]
[367732328,1750908640312,-500.0,0.0001814,2]
[367732329,1750908640321,-500.0,0.0001814,2]
[367732330,1750908640330,-151.0,0.0001814,2]
[367732331,1750908640339,-500.0,0.0001814,2]
[367732332,1750908640348,-500.0,0.0001814,2]
[367732333,1750908640358,-500.0,0.0001814,2]
[367732334,1750908640369,-151.0,0.0001814,2]
[367732335,1750908640379,-151.0,0.0001814,2]
[367732337,1750908640389,-500.0,0.0001814,2]
[367732339,1750908640398,-500.0,0.0001814,2]
[367732341,1750908640412,-500.0,0.0001814,2]
[367732343,1750908640422,-151.0,0.0001814,2]
[367732345,1750908640431,-500.0,0.0001814,2]
[367732346,1750908640443,-500.0,0.0001814,2]
[367732348,1750908640452,-500.0,0.0001814,2]
[367732350,1750908640463,-219.65880211,0.0001814,2]
[367732351,1750908640474,-500.0,0.0001814,2]
[367732352,1750908640484,-500.0,0.0001814,2]
[367732353,1750908640495,-500.0,0.0001814,2]
[367732355,1750908640504,-500.0,0.0001814,2]
[367732356,1750908640514,-500.0,0.0001814,2]
[367732358,1750908640524,-193.91835657,0.0001814,2]
[367732361,1750908640533,-500.0,0.0001814,2]
[367732363,1750908640543,-500.0,0.0001814,2]
[367732364,1750908640552,-500.0,0.0001814,2]
[367732366,1750908640561,-500.0,0.0001814,2]
[367732368,1750908640571,-500.0,0.0001814,2]
[367732370,1750908640580,-500.0,0.0001814,2]
[367732372,1750908640590,-500.0,0.0001814,2]
[367732375,1750908640601,-500.0,0.0001814,2]
[367732377,1750908640610,-500.0,0.0001814,2]
[367732378,1750908640620,-500.0,0.0001814,2]
[367732380,1750908640629,-25000.0,0.0001814,2]
[367732382,1750908640639,-20821.43838835,0.0001814,2]
[367732385,1750908640649,-460.0,0.00018162,2]
[367732387,1750908640662,-413.99532174,0.00018162,2]
[367732389,1750908640671,-534.87681121,0.00018176,2]
[367732391,1750908640680,-402.356,0.00018195,2]
[367732393,1750908640690,-417.243172,0.0001825,2]
[367732395,1750908640699,-420.0,0.00018264,2]
[367732397,1750908640711,-432.68116936,0.00018305,2]
[367732398,1750908640721,-294.98,0.00018339,3]
[367732400,1750908640732,-884.94,0.00018339,3]
[367732403,1750908640742,-460.0,0.00018346,2]
[367732405,1750908640751,-460.0,0.00018346,2]
[367732407,1750908640762,-460.0,0.00018346,2]
[367732409,1750908640771,-386.73,0.00018347,2]
[367732411,1750908640781,-460.0,0.00018347,2]
[367732413,1750908640790,-272.15423309,0.00018348,2]
[367732415,1750908640800,-460.0,0.00018349,2]
[367732417,1750908640810,-460.0,0.00018349,2]
[367732418,1750908640819,-460.0,0.00018349,2]
[367732420,1750908640829,-448.69037263,0.0001836,2]
[367732422,1750908640838,-465.29191642,0.00018415,2]
[367732424,1750908640847,-460.0,0.00018436,2]
[367732426,1750908640857,-534.87681121,0.00018452,2]
[367732428,1750908640866,-482.50771733,0.0001847,2]
[367732430,1750908640875,-500.36050287,0.00018525,2]
[367732432,1750908640885,-518.87384147,0.0001858,2]
[367732434,1750908640894,-460.0,0.0001862,2]
[367732436,1750908640904,-460.0,0.0001862,2]
[367732438,1750908640913,-460.0,0.0001862,2]
[367732440,1750908640923,-460.0,0.00018621,2]
[367732442,1750908640932,-460.0,0.00018623,2]
[367732444,1750908640941,-460.0,0.00018623,2]
[367732446,1750908640950,-460.0,0.00018623,2]
[367732448,1750908640959,-538.07217361,0.00018635,2]
[367732450,1750908640968,-516.61,0.00018678,3]
[367732452,1750908640977,-258.31,0.00018678,3]
[367732454,1750908640987,-774.93,0.00018678,3]
[367732456,1750908640996,-5000.0,0.00018688,2]
[367732458,1750908641005,-25000.0,0.00018688,2]
[367732460,1750908641015,-557.98084403,0.0001869,2]
[367732462,1750908641025,-460.0,0.0001871,2]
[367732464,1750908641035,-534.87681121,0.00018728,2]
[367732466,1750908641044,-500.0,0.00018853,2]
[367732468,1750908641053,-460.0,0.00018894,2]
[367732470,1750908641063,-460.0,0.00018894,2]
[367732472,1750908641072,-460.0,0.00018894,2]
[367732474,1750908641082,-460.0,0.00018895,2]
[367732476,1750908641093,-460.0,0.00018897,2]
[367732478,1750908641103,-460.0,0.00018897,2]
[367732480,1750908641112,-460.0,0.00018897,2]
[367732482,1750908641122,-505.50970793,0.000189,2]
[367732484,1750908641131,-460.0,0.00018984,2]
[367732486,1750908641141,-534.87681121,0.00019003,2]
[367732488,1750908641151,-210.42559082,0.00019168,2]
[367732490,1750908641160,-460.0,0.00019168,2]
[367732492,1750908641169,-460.0,0.00019168,2]
[367732494,1750908641178,-460.0,0.00019169,2]
[367732496,1750908641187,-581.25646395,0.00019171,2]
[367732498,1750908641197,-460.0,0.00019171,2]
[367732500,1750908641207,-171.45,0.00019171,2]
[367732502,1750908641216,-298.630649,0.00019178,2]
[367732504,1750908641226,-5000.0,0.00019236,2]
[367732506,1750908641236,-25000.0,0.00019236,2]
[367732508,1750908641245,-460.0,0.00019258,2]
[367732510,1750908641255,-534.87681121,0.00019279,2]
[367732512,1750908641266,-18607.43348381,0.00019329,2]
[367732514,1750908641276,-188.26819983,0.00019442,2]
[367732516,1750908641285,-460.0,0.00019442,2]
[367732518,1750908641295,-460.0,0.00019443,2]
[367732520,1750908641304,-460.0,0.00019445,2]
[367732522,1750908641313,-8477.0651928,0.00019447,2]
[367732524,1750908641323,-953.082797,0.00019502,2]
[367732526,1750908641332,-215.0738,0.00019509,2]
[367732528,1750908641341,-302.64005455,0.00019532,2]
[367732530,1750908641351,-534.87681121,0.00019555,2]
[367732532,1750908641360,-370.4078223,0.00019587,2]
[367732534,1750908641370,-366.0085437,0.00019587,2]
[367732536,1750908641379,-366.0085437,0.00019587,2]
[367732538,1750908641389,-366.0085437,0.00019587,2]
[367732540,1750908641399,-589.96,0.00019709,3]
[367732542,1750908641411,-460.0,0.00019716,2]
[367732544,1750908641420,-460.0,0.00019717,2]
[367732546,1750908641430,-460.0,0.00019719,2]
[367732548,1750908641439,-77810.19918,0.00019783,2]
[367732550,1750908641451,-5000.0,0.00019784,2]
[367732552,1750908641460,-25000.0,0.00019784,2]
[367732554,1750908641470,-1005.52,0.000198,5]
[367732556,1750908641479,-290.29,0.000198,2]
[367732558,1750908641491,-181.57713698,0.000198,2]
[367732560,1750908641501,-4943.68990716,0.000198,2]
[367732562,1750908641510,-316.1782882,0.00019802,2]
[367732564,1750908641519,-153.6067951,0.00019802,2]
[367732566,1750908641528,-534.87681121,0.00019831,2]
[367732568,1750908641537,-223.36198317,0.00019885,2]
[367732570,1750908641547,-500.0,0.00019899,2]
[367732572,1750908641557,-529.91656524,0.00019899,2]
[367732574,1750908641566,-196.52275993,0.00019899,2]
[367732576,1750908641578,-500.0,0.00019899,2]
[367732578,1750908641587,-529.91656524,0.00019899,2]
[367732580,1750908641597,-529.91656524,0.00019899,2]
[367732582,1750908641606,-529.91656524,0.00019899,2]
[367732584,1750908641616,-500.0,0.00019899,2]
[367732587,1750908641626,-329.30889397,0.00019899,2]
[367732589,1750908641636,-529.91656524,0.00019899,2]
[367732591,1750908641646,-529.91656524,0.00019899,2]
[367732593,1750908641655,-529.91656524,0.00019899,2]
[367732595,1750908641665,-529.91656524,0.00019899,2]
[367732596,1750908641675,-529.91656524,0.00019899,2]
[367732599,1750908641684,-529.91656524,0.00019899,2]
[367732601,1750908641694,-529.91656524,0.00019899,2]
[367732602,1750908641703,-529.91656524,0.00019899,2]
[367732604,1750908641712,-529.91656524,0.00019899,2]
[367732606,1750908641722,-529.91656524,0.00019899,2]
[367732608,1750908641731,-529.91656524,0.00019899,2]
[367732610,1750908641740,-529.91656524,0.00019899,2]
[367732612,1750908641750,-529.91656524,0.00019899,2]
[367732614,1750908641761,-529.91656524,0.00019899,2]
[367732616,1750908641770,-529.91656524,0.00019899,2]
[367732618,1750908641779,-529.91656524,0.00019899,2]
[367732620,1750908641789,-12560.17507789,0.000199,7]
[367732622,1750908641798,-162.373761,0.000199,2]
[367732624,1750908641807,-151.951666,0.000199,2]
[367732626,1750908641817,-846.92323443,0.000199,7]
[367732628,1750908641826,-151.0,0.000199,2]
[367732630,1750908641839,-152.611998,0.000199,2]
[367732633,1750908641849,-151.577273,0.000199,2]
[367732635,1750908641858,-151.0,0.000199,2]
[367732637,1750908641868,-151.0,0.000199,2]
[367732639,1750908641878,-803723.26257708,0.000199,7]
[367732653,1750908641994,-445.44633392,0.00016718,2]
[367732655,1750908642007,-17.23462873,0.00016718,2]
[367732657,1750908642016,-460.0,0.00017814,2]
[367732659,1750908642025,-2238.04190898,0.000199,7]
[367732661,1750908642036,-1293.46874142,0.000199,7]
[367732663,1750908642047,-444.99950906,0.000199,7]
[367732665,1750908642058,-1000.9999859,0.000199,7]
[367732668,1750908642069,-657.32772217,0.000199,7]
[367732670,1750908642080,-401.42757738,0.000199,7]
[367732681,1750908642171,-485.62,0.00018088,2]
[367732683,1750908642180,-2509.98087024,0.000199,7]
[367732685,1750908642191,-105754.6059706,0.000199,7]
[367732687,1750908642202,-409.89301525,0.000199,7]
[367732689,1750908642214,-749.18887596,0.000199,7]
[367732872,1750908644140,-73517.31332661,0.000199,7]
[367732874,1750908644152,-53595.7452056,0.000199,7]
[367732880,1750908644196,-14743.0056486,0.000199,7]
[367732882,1750908644207,-595.33629105,0.000199,7]
[367732884,1750908644218,-8213.47975558,0.000199,7]
[367733158,1750908646764,-464.97509208,0.00016718,2]
[367733160,1750908646774,-441.91906247,0.00017614,2]
[367733162,1750908646783,-466.83071204,0.00017614,2]
[367733164,1750908646792,-450.6,0.00017799,2]
[367733166,1750908646802,-10195.60065345,0.000199,7]
[367734096,1750909304133,13376.1554017,0.00015855,2]
[367734097,1750909304156,11523.8445983,0.00015855,2]
[367734101,1750909823550,484.643832,0.00013699,2]
[367734124,1750909831998,-300.0,0.00016714,2]
[367734125,1750909832009,-1200.0,0.00016714,2]
[367734126,1750909832018,-300.0,0.00016715,2]
[367734127,1750909832027,-462.81214464,0.00016715,2]
[367734128,1750909832037,-462.36673577,0.00016715,2]
[367734129,1750909832046,-460.0,0.00016715,2]
[367734130,1750909832056,-460.0,0.00016715,2]
[367734131,1750909832065,-460.0,0.00016715,2]
[367734132,1750909832074,-460.0,0.00016715,2]
[367734133,1750909832084,-461.98224367,0.00016715,2]
[367734134,1750909832093,-464.4263832,0.00016715,2]
[367734135,1750909832102,-14535.74019612,0.00016716,2]
[367734136,1750909832111,-460.0,0.00016716,2]
[367734137,1750909832120,-472.30094572,0.00016716,2]
[367734138,1750909832129,-473.63371356,0.00016716,2]
[367734139,1750909832139,-460.0,0.00016716,2]
[367734140,1750909832148,-470.86940489,0.00016716,2]
[367734141,1750909832157,-460.0,0.00016716,2]
[367734142,1750909832167,-258.36080698,0.00016716,2]
[367734143,1750909832180,-460.0,0.00016716,2]
[367734144,1750909832190,-460.0,0.00016716,2]
[367734145,1750909832201,-460.0,0.00016716,2]
[367734146,1750909832211,-460.0,0.00016716,2]
[367734147,1750909832220,-463.03,0.00016716,2]
[367734148,1750909832230,-422.1792641,0.00016716,2]
[367734149,1750909832239,-460.0,0.00016716,2]
[367734150,1750909832249,-460.0,0.00016716,2]
[367734151,1750909832258,-460.0,0.00016716,2]
[367734152,1750909832268,-460.0,0.00016716,2]
[367734153,1750909832278,-460.0,0.00016716,2]
[367734154,1750909832287,-460.0,0.00016716,2]
[367734155,1750909832296,-460.0,0.00016716,2]
[367734156,1750909832306,-460.0,0.00016716,2]
[367734157,1750909832315,-460.0,0.00016716,2]
[367734158,1750909832325,-618.92,0.00016716,2]
[367734159,1750909832334,-460.0,0.00016716,2]
[367734160,1750909832344,-540.18,0.00016716,2]
[367734161,1750909832354,-460.0,0.00016716,2]
[367734162,1750909832363,-293.91822969,0.00016716,2]
[367734163,1750909832372,-460.0,0.00016716,2]
[367734164,1750909832382,-460.0,0.00016716,2]
[367734165,1750909832391,-460.0,0.00016716,2]
[367734166,1750909832400,-462.10138461,0.00016716,2]
[367734167,1750909832410,-460.0,0.00016716,2]
[367734168,1750909832420,-460.0,0.00016716,2]
[367734169,1750909832430,-460.0,0.00016716,2]
[367734170,1750909832439,-460.0,0.00016716,2]
[367734171,1750909832450,-460.0,0.00016716,2]
[367734172,1750909832459,-460.0,0.00016716,2]
[367734173,1750909832469,-461.37839604,0.00016716,2]
[367734174,1750909832478,-460.0,0.00016716,2]
[367734175,1750909832488,-521.97829028,0.00016716,2]
[367734176,1750909832498,-460.0,0.00016716,2]
[367734177,1750909832507,-460.0,0.00016716,2]
[367734178,1750909832517,-463.44249681,0.00016716,2]
[367734179,1750909832526,-460.0,0.00016716,2]
[367734180,1750909832536,-460.0,0.00016716,2]
[367734181,1750909832546,-498.09936527,0.00016716,2]
[367734182,1750909832555,-460.0,0.00016716,2]
[367734183,1750909832565,-371.11725874,0.00016716,2]
[367734184,1750909832574,-460.0,0.00016716,2]
[367734185,1750909832584,-460.0,0.00016716,2]
[367734186,1750909832593,-460.0,0.00016716,2]
[367734187,1750909832603,-460.0,0.00016716,2]
[367734188,1750909832613,-460.0,0.00016716,2]
[367734189,1750909832623,-460.0,0.00016716,2]
[367734190,1750909832637,-461.73650915,0.00016716,2]
[367734191,1750909832646,-460.0,0.00016716,2]
[367734192,1750909832655,-460.0,0.00016716,2]
[367734193,1750909832665,-464.61735849,0.00016716,2]
[367734194,1750909832674,-460.0,0.00016716,2]
[367734195,1750909832683,-460.0,0.00016716,2]
[367734196,1750909832693,-460.0,0.00016716,2]
[367734197,1750909832705,-460.0,0.00016716,2]
[367734198,1750909832715,-516.9620291,0.00016716,2]
[367734199,1750909832726,-460.0,0.00016716,2]
[367734200,1750909832735,-460.0,0.00016716,2]
[367734201,1750909832744,-460.0,0.00016716,2]
[367734202,1750909832753,-459.33827475,0.00016716,2]
[367734203,1750909832762,-460.0,0.00016716,2]
[367734204,1750909832772,-460.0,0.00016716,2]
[367734205,1750909832782,-461.46110206,0.00016716,2]
[367734206,1750909832791,-1000.0,0.00016717,2]
[367734207,1750909832802,-465.59676783,0.00016717,2]
[367734208,1750909832812,-463.93424586,0.00016717,2]
[367734209,1750909832822,-462.47745078,0.00016717,2]
[367734210,1750909832832,-460.0,0.00016717,2]
[367734211,1750909832842,-464.1177015,0.00016717,2]
[367734212,1750909832851,-460.0,0.00016717,2]
[367734213,1750909832861,-464.79921596,0.00016717,2]
[367734214,1750909832870,-463.36144632,0.00016717,2]
[367734215,1750909832879,-460.0,0.00016717,2]
[367734216,1750909832889,-465.39217285,0.00016717,2]
[367734217,1750909832898,-464.25609021,0.00016717,2]
[367734218,1750909832909,-462.70891848,0.00016717,2]
[367734219,1750909832918,-520.07741598,0.00016717,2]
[367734220,1750909832929,-460.0,0.00016717,2]
[367734221,1750909832939,-357.85271653,0.00016717,2]
[367734222,1750909832949,-460.0,0.00016717,2]
[367734223,1750909832959,-460.0,0.00016717,2]
[367734224,1750909832968,-460.0,0.00016717,2]
[367734225,1750909832978,-460.0,0.00016717,2]
[367734226,1750909832988,-460.0,0.00016717,2]
[367734227,1750909832999,-460.0,0.00016717,2]
[367734228,1750909833008,-460.0,0.00016717,2]
[367734229,1750909833018,-302.34670193,0.00016717,2]
[367734230,1750909833027,-460.0,0.00016717,2]
[367734231,1750909833037,-465.41565427,0.00016717,2]
[367734232,1750909833046,-464.61291591,0.00016717,2]
[367734233,1750909833055,-460.0,0.00016717,2]
[367734234,1750909833065,-460.0,0.00016717,2]
[367734235,1750909833075,-460.0,0.00016717,2]
[367734236,1750909833084,-460.0,0.00016717,2]
[367734237,1750909833094,-460.0,0.00016717,2]
[367734238,1750909833104,-460.0,0.00016717,2]
[367734239,1750909833113,-460.0,0.00016717,2]
[367734240,1750909833123,-460.0,0.00016717,2]
[367734241,1750909833134,-460.0,0.00016717,2]
[367734242,1750909833144,-460.0,0.00016717,2]
[367734243,1750909833154,-460.0,0.00016717,2]
[367734244,1750909833163,-460.0,0.00016717,2]
[367734245,1750909833173,-460.0,0.00016717,2]
[367734246,1750909833183,-460.0,0.00016717,2]
[367734247,1750909833193,-460.0,0.00016717,2]
[367734248,1750909833204,-460.0,0.00016717,2]
[367734249,1750909833213,-460.0,0.00016717,2]
[367734250,1750909833223,-460.0,0.00016717,2]
[367734251,1750909833233,-168.4171409,0.00016717,2]
[367734252,1750909833243,-460.0,0.00016717,2]
[367734253,1750909833252,-460.0,0.00016717,2]
[367734254,1750909833262,-460.0,0.00016717,2]
[367734255,1750909833271,-460.0,0.00016717,2]
[367734256,1750909833281,-460.0,0.00016717,2]
[367734257,1750909833291,-460.0,0.00016717,2]
[367734258,1750909833300,-460.0,0.00016717,2]
[367734259,1750909833310,-460.0,0.00016717,2]
[367734260,1750909833319,-460.0,0.00016717,2]
[367734261,1750909833329,-460.0,0.00016717,2]
[367734262,1750909833339,-460.0,0.00016717,2]
[367734263,1750909833348,-460.0,0.00016717,2]
[367734264,1750909833358,-460.0,0.00016717,2]
[367734265,1750909833368,-460.0,0.00016717,2]
[367734266,1750909833377,-460.0,0.00016717,2]
[367734267,1750909833387,-884.2,0.00016717,2]
[367734268,1750909833397,-460.0,0.00016717,2]
[367734269,1750909833406,-460.0,0.00016717,2]
[367734270,1750909833416,-460.0,0.00016717,2]
[367734271,1750909833426,-460.0,0.00016717,2]
[367734272,1750909833435,-460.0,0.00016717,2]
[367734273,1750909833445,-460.0,0.00016717,2]
[367734274,1750909833457,-460.0,0.00016717,2]
[367734275,1750909833467,-460.0,0.00016717,2]
[367734276,1750909833478,-460.0,0.00016717,2]
[367734277,1750909833487,-460.0,0.00016717,2]
[367734278,1750909833496,-460.0,0.00016717,2]
[367734279,1750909833506,-233.28663339,0.00016717,2]
[367734280,1750909833516,-466.91901659,0.00016717,2]
[367734281,1750909833526,-460.0,0.00016717,2]
[367734282,1750909833536,-460.0,0.00016717,2]
[367734283,1750909833546,-460.0,0.00016717,2]
[367734284,1750909833556,-460.0,0.00016717,2]
[367734285,1750909833566,-460.0,0.00016717,2]
[367734286,1750909833575,-460.0,0.00016717,2]
[367734287,1750909833585,-460.0,0.00016717,2]
[367734288,1750909833594,-463.98769077,0.00016717,2]
[367734289,1750909833604,-460.0,0.00016717,2]
[367734290,1750909833614,-500.0,0.00016717,2]
[367734291,1750909833623,-448.42266188,0.00016717,2]
[367734292,1750909833633,-460.0,0.00016717,2]
[367734293,1750909833642,-460.0,0.00016717,2]
[367734294,1750909833652,-479.08704542,0.00016717,2]
[367734295,1750909833661,-460.0,0.00016717,2]
[367734296,1750909833671,-460.0,0.00016717,2]
[367734297,1750909833682,-460.0,0.00016717,2]
[367734298,1750909833692,-460.0,0.00016717,2]
[367734299,1750909833702,-462.04067117,0.00016717,2]
[367734300,1750909833711,-460.0,0.00016717,2]
[367734301,1750909833723,-460.0,0.00016717,2]
[367734302,1750909833734,-460.0,0.00016717,2]
[367734303,1750909833744,-460.0,0.00016717,2]
[367734304,1750909833753,-460.0,0.00016717,2]
[367734305,1750909833763,-463.42122301,0.00016718,2]
[367734306,1750909833773,-460.0,0.00016718,2]
[367734307,1750909833782,-466.14377587,0.00016718,2]
[367734308,1750909833791,-441.24320566,0.00016718,2]
[367734309,1750909833801,-460.0,0.00016718,2]
[367734310,1750909833810,-217.14298437,0.00016718,2]
[367734311,1750909833820,-471.24866197,0.00016718,2]
[367734312,1750909833829,-460.0,0.00016718,2]
[367734313,1750909833839,-460.0,0.00016718,2]
[367734314,1750909833849,-296.48098677,0.00016718,2]
[367734315,1750909833859,-460.0,0.00016718,2]
[367734316,1750909833868,-460.0,0.00016718,2]
[367734317,1750909833877,-466.78198411,0.00016718,2]
[367734318,1750909833887,-460.0,0.00016718,2]
[367734319,1750909833897,-460.0,0.00016718,2]
[367734320,1750909833906,-329.66009294,0.00016718,2]
[367734321,1750909833916,-460.0,0.00016718,2]
[367734322,1750909833926,-474.1561096,0.00016718,2]
[367734323,1750909833937,-460.0,0.00016718,2]
[367734324,1750909833947,-460.0,0.00016718,2]
[367734325,1750909833958,-460.0,0.00016718,2]
[367734326,1750909833969,-460.0,0.00016718,2]
[367734327,1750909833978,-462.2108744,0.00016718,2]
[367734328,1750909833989,-304.38118086,0.00016718,2]
[367734329,1750909833999,-460.82695571,0.00016718,2]
[367734330,1750909834009,-467.76876247,0.00016718,2]
[367734331,1750909834020,-460.6768697,0.00016718,2]
[367734332,1750909834030,-222.19707807,0.00016718,2]
[367734333,1750909834039,-460.0,0.00016718,2]
[367734334,1750909834049,-460.0,0.00016718,2]
[367734335,1750909834060,-462.79355845,0.00016718,2]
[367734336,1750909834070,-460.0,0.00016718,2]
[367734337,1750909834080,-464.25652643,0.00016718,2]
[367734338,1750909834090,-466.05199688,0.00016718,2]
[367734339,1750909834099,-460.64188274,0.00016718,2]
[367734340,1750909834108,-464.98988801,0.00016718,2]
[367734341,1750909834118,-460.0,0.00016718,2]
[367734342,1750909834129,-460.0,0.00016718,2]
[367734343,1750909834139,-460.0,0.00016718,2]
[367734344,1750909834148,-465.15996162,0.00016718,2]
[367734345,1750909834158,-462.15478627,0.00016718,2]
[367734346,1750909834168,-468.44414419,0.00016718,2]
[367734347,1750909834178,-460.0,0.00016718,2]
[367734348,1750909834187,-460.0,0.00016718,2]
[367734349,1750909834197,-466.91629289,0.00016718,2]
[367734350,1750909834208,-461.40846739,0.00016718,2]
[367734351,1750909834218,-466.27438454,0.00016718,2]
[367734352,1750909834227,-463.99516615,0.00016718,2]
[367734353,1750909834237,-460.0,0.00016718,2]
[367734354,1750909834247,-464.23638813,0.00016718,2]
[367734355,1750909834430,-460.0,0.00016718,2]
[367734356,1750909834453,-167.29309569,0.00016718,2]
[367734357,1750909834464,-460.0,0.00016718,2]
[367734358,1750909834475,-461.07590154,0.00016718,2]
[367734359,1750909834485,-460.0,0.00016718,2]
[367734360,1750909834495,-466.32839735,0.00016718,2]
[367734361,1750909834506,-463.30264669,0.00016718,2]
[367734362,1750909834516,-463.13454549,0.00016718,2]
[367734363,1750909834526,-502.95904537,0.00016718,2]
[367734364,1750909834536,-387.30867839,0.00016718,2]
[367734365,1750909834546,-461.42136977,0.00016718,2]
[367734366,1750909834557,-463.98579142,0.00016718,2]
[367734367,1750909834566,-463.16399967,0.00016718,2]
[367734368,1750909834576,-465.25704522,0.00016718,2]
[367734369,1750909834587,-467.67957595,0.00016718,2]
[367734370,1750909834597,-464.10935012,0.00016718,2]
[367734371,1750909834606,-463.15394747,0.00016718,2]
[367734372,1750909834618,-460.0,0.00016718,2]
[367734373,1750909834629,-460.0,0.00016718,2]
[367734374,1750909834638,-460.62530632,0.00016718,2]
[367734375,1750909834648,-460.0,0.00016718,2]
[367734376,1750909834658,-463.69610348,0.00016718,2]
[367734377,1750909834667,-461.59107913,0.00016718,2]
[367734378,1750909834677,-460.0,0.00016718,2]
[367734379,1750909834686,-466.14470034,0.00016718,2]
[367734380,1750909834696,-471.58517142,0.00016718,2]
[367734381,1750909834707,-461.09692528,0.00016718,2]
[367734382,1750909834716,-462.76164953,0.00016718,2]
[367734383,1750909834729,-464.84495185,0.00016718,2]
[367734384,1750909834738,-461.41669292,0.00016718,2]
[367734385,1750909834748,-463.59550568,0.00016718,2]
[367734386,1750909834758,-468.35487338,0.00016718,2]
[367734387,1750909834767,-454.38021337,0.00016718,2]
[367734388,1750909834777,-460.0,0.00016718,2]
[367734389,1750909834787,-464.17288878,0.00016718,2]
[367734390,1750909834797,-460.0,0.00016718,2]
[367734391,1750909834808,-474.09140332,0.00016718,2]
[367734392,1750909834818,-425.85951949,0.00016718,2]
[367734393,1750909834828,-465.89706529,0.00016718,2]
[367734394,1750909834837,-467.37182877,0.00016718,2]
[367734395,1750909834847,-460.0,0.00016718,2]
[367734396,1750909834856,-460.0,0.00016718,2]
[367734397,1750909834866,-469.80514905,0.00016718,2]
[367734398,1750909834876,-460.0,0.00016718,2]
[367734399,1750909834885,-464.8941093,0.00016718,2]
[367734400,1750909834896,-471.54524636,0.00016718,2]
[367734401,1750909834907,-465.2776892,0.00016718,2]
[367734402,1750909834917,-460.0,0.00016718,2]
[367734403,1750909834926,-500.01723743,0.00016718,2]
[367734404,1750909834937,-1493.84545109,0.00016892,2]
[367734405,1750909834946,-436.9003101,0.000169,2]
[367734406,1750909834957,-675.09,0.00016982,3]
[367734407,1750909834967,-460.0,0.00016989,2]
[367734408,1750909834978,-460.0,0.00016989,2]
[367734409,1750909834988,-460.0,0.00016989,2]
[367734410,1750909834998,-460.0,0.0001699,2]
[367734411,1750909835008,-472.72939966,0.0001699,2]
[367734412,1750909835018,-167.30115301,0.0001699,2]
[367734413,1750909835027,-463.03,0.0001699,2]
[367734414,1750909835037,-460.0,0.0001699,2]
[367734415,1750909835047,-460.0,0.0001699,2]
[367734416,1750909835056,-460.0,0.0001699,2]
[367734417,1750909835066,-460.0,0.0001699,2]
[367734418,1750909835075,-460.0,0.0001699,2]
[367734419,1750909835085,-618.92,0.0001699,2]
[367734420,1750909835094,-460.0,0.0001699,2]
[367734421,1750909835103,-460.0,0.0001699,2]